fUSD/lending_fUSD_20241227
["ID","MTS","AMOUNT","RATE_DAILY","PERIOD"]
[346757833,1735265440580,-2083.99,0.00011991,2]
[346757834,1735265440590,-1363.69,0.00011991,2]
[346757835,1735265440600,-500.0,0.00011991,2]
[346757836,1735265440609,-500.0,0.00011991,2]
[346757837,1735265440618,-431.35378358,0.00011991,2]
[346757838,1735265440628,-4154.54,0.00011991,2]
[346757839,1735265440637,-667.46,0.00011991,2]
[346757840,1735265440647,-4124.73,0.00011991,2]
[346757841,1735265440656,-500.0,0.00011991,2]
[346757842,1735265440667,-3931.38,0.00011991,2]
[346757843,1735265440676,-501.34951798,0.00011991,2]
[346757844,1735265440686,-501.49786016,0.00011991,2]
[346757845,1735265440695,-500.0,0.00011991,2]
[346757846,1735265440705,-500.0,0.00011991,2]
[346757847,1735265440714,-500.0,0.00011991,2]
[346757848,1735265440723,-526.06,0.00011991,2]
[346757849,1735265440732,-782.28,0.00011991,2]
[346757850,1735265440741,-500.0,0.00011991,2]
[346757851,1735265440751,-500.22858858,0.00011991,2]
[346757852,1735265440760,-500.0,0.00011992,2]
[346757853,1735265440769,-500.0,0.00011992,2]
[346757854,1735265440779,-2101.23,0.00011992,2]
[346757855,1735265440788,-501.29630193,0.00011992,2]
[346757856,1735265440798,-1430.98,0.00011992,2]
[346757857,1735265440807,-1050.59,0.00011992,2]
[346757858,1735265440816,-1199.18,0.00011992,2]
[346757859,1735265440825,-500.0,0.00011992,2]
[346757860,1735265440835,-1496.55,0.00011992,2]
[346757861,1735265440844,-1628.9,0.00011992,2]
[346757862,1735265440853,-1067.73,0.00011992,2]
[346757863,1735265440862,-516.10700621,0.00011992,2]
[346757864,1735265440871,-500.0,0.00011992,2]
[346757865,1735265440881,-623.08,0.00011992,2]
[346757866,1735265440890,-500.0,0.00011992,2]
[346757867,1735265440899,-501.30029265,0.00011992,2]
[346757868,1735265440911,-1958.11,0.00011992,2]
[346757869,1735265440920,-2303.83,0.00011992,2]
[346757870,1735265440930,-500.0,0.00011992,2]
[346757871,1735265440939,-921.65,0.00011992,2]
[346757872,1735265440949,-1533.1,0.00011992,2]
[346757873,1735265440958,-1694.21,0.00011992,2]
[346757874,1735265440968,-1813.8,0.00011992,2]
[346757875,1735265440977,-964.58,0.00011992,2]
[346757876,1735265440986,-500.0,0.00011992,2]
[346757877,1735265440996,-500.0,0.00011992,2]
[346757878,1735265441005,-500.0,0.00011992,2]
[346757879,1735265441015,-500.0,0.00011992,2]
[346757880,1735265441024,-394.92312948,0.00011992,2]
[346757881,1735265441033,-500.0,0.00011992,2]
[346757882,1735265441042,-1722.9,0.00011992,2]
[346757883,1735265441052,-500.0,0.00011992,2]
[346757884,1735265441061,-500.0,0.00011992,2]
[346757885,1735265441070,-1085.06,0.00011992,2]
[346757886,1735265441079,-500.0,0.00011992,2]
[346757887,1735265441088,-309.86699008,0.00011992,2]
[346757888,1735265441098,-1573.61,0.00011992,2]
[346757889,1735265441107,-500.0,0.00011992,2]
[346757890,1735265441116,-922.14,0.00011992,2]
[346757891,1735265441126,-1067.26,0.00011992,2]
[346757892,1735265441135,-957.26,0.00011992,2]
[346757893,1735265441145,-500.0,0.00011992,2]
[346757894,1735265441154,-1330.32,0.00011992,2]
[346757895,1735265441167,-1223.57,0.00011992,2]
[346757896,1735265441176,-500.0,0.00011992,2]
[346757897,1735265441186,-1072.15,0.00011992,2]
[346757898,1735265441196,-500.0,0.00011992,2]
[346757899,1735265441205,-1138.11,0.00011992,2]
[346757900,1735265441214,-686.65,0.00011992,2]
[346757901,1735265441223,-532.17,0.00011992,2]
[346757902,1735265441233,-786.06,0.00011992,2]
[346757903,1735265441242,-1300.02,0.00011992,2]
[346757904,1735265441251,-2253.41,0.00011992,2]
[346757905,1735265441261,-1514.44,0.00011992,2]
[346757906,1735265441271,-1193.61,0.00011992,2]
[346757907,1735265441280,-865.14,0.00011992,2]
[346757908,1735265441290,-3264.56,0.00011992,2]
[346757909,1735265441300,-526.39,0.00011992,2]
[346757910,1735265441312,-1232.43,0.00011992,2]
[346757911,1735265441322,-1618.7,0.00011992,2]
[346757912,1735265441331,-500.0,0.00011992,2]
[346757913,1735265441341,-3770.91,0.00011992,2]
[346757914,1735265441351,-1507.31,0.00011992,2]
[346757915,1735265441360,-642.42,0.00011992,2]
[346757916,1735265441369,-1478.09,0.00011992,2]
[346757917,1735265441379,-678.32,0.00011992,2]
[346757918,1735265441388,-1031.2,0.00011992,2]
[346757919,1735265441398,-3101.7,0.00011992,2]
[346757920,1735265441408,-2391.81,0.00011992,2]
[346757921,1735265441418,-1288.64,0.00011992,2]
[346757922,1735265441428,-557.72,0.00011992,2]
[346757923,1735265441437,-942.9,0.00011992,2]
[346757924,1735265441447,-1070.17,0.00011992,2]
[346757925,1735265441457,-1703.37,0.00011992,2]
[346757926,1735265441467,-1122.55,0.00011992,2]
[346757927,1735265441480,-500.0,0.00011992,2]
[346757928,1735265441491,-500.0,0.00011992,2]
[346757929,1735265441504,-6552.27,0.00011992,2]
[346757930,1735265441515,-500.0,0.00011992,2]
[346757931,1735265441524,-500.0,0.00011992,2]
[346757932,1735265441533,-1106.98,0.00011992,2]
[346757933,1735265441543,-3991.53,0.00011992,2]
[346757934,1735265441553,-805.54,0.00011992,2]
[346757935,1735265441562,-502.53682919,0.00011992,2]
[346757936,1735265441571,-500.0,0.00011992,2]
[346757937,1735265441581,-16495.98,0.00011992,2]
[346757938,1735265441590,-1484.5,0.00011992,2]
[346757939,1735265441600,-501.4314522,0.00011992,2]
[346757940,1735265441609,-882.79,0.00011992,2]
[346757941,1735265441621,-671.02,0.00011992,2]
[346757942,1735265441630,-11351.94,0.00011992,2]
[346757943,1735265441639,-501.34927295,0.00011992,2]
[346757944,1735265441649,-1618.96,0.00011992,2]
[346757945,1735265441659,-1136.48,0.00011992,2]
[346757946,1735265441669,-1868.67,0.00011992,2]
[346757947,1735265441679,-2625.61,0.00011992,2]
[346757948,1735265441688,-2625.61,0.00011992,2]
[346757949,1735265441698,-1746.63,0.00011992,2]
[346757950,1735265441707,-500.0,0.00011992,2]
[346757951,1735265441716,-752.42,0.00011992,2]
[346757952,1735265441725,-641.52,0.00011992,2]
[346757953,1735265441735,-3708.18,0.00011992,2]
[346757954,1735265441744,-500.0,0.00011992,2]
[346757955,1735265441754,-1066.61,0.00011992,2]
[346757956,1735265441763,-14737.49,0.00011992,2]
[346757957,1735265441772,-978.66,0.00011992,2]
[346757958,1735265441781,-202.26,0.00011992,2]
[346757959,1735265441790,-201.53,0.00011993,2]
[346757960,1735265441799,-500.64202952,0.00011993,2]
[346757961,1735265441809,-235.76363285,0.00011993,2]
[346757962,1735265441818,-501.90042591,0.00011993,2]
[346757963,1735265441827,-500.0,0.00011993,2]
[346757964,1735265441837,-151.117228,0.00011993,2]
[346757965,1735265441847,-167.97873921,0.00011993,2]
[346757966,1735265441856,-500.0,0.00011993,2]
[346757967,1735265441865,-500.71734817,0.00011993,2]
[346757968,1735265441875,-500.0,0.00011993,2]
[346757969,1735265441885,-500.0,0.00011993,2]
[346757970,1735265441894,-613.87386368,0.00011993,2]
[346757971,1735265441904,-500.0,0.00011993,2]
[346757972,1735265441915,-500.33843413,0.00011993,2]
[346757973,1735265441924,-502.16036633,0.00011993,2]
[346757974,1735265441934,-500.79386051,0.00011993,2]
[346757975,1735265441943,-159.39999011,0.00011993,2]
[346757976,1735265441953,-500.0,0.00011993,2]
[346757977,1735265441963,-500.56407324,0.00011993,2]
[346757978,1735265441972,-500.94427282,0.00011993,2]
[346757979,1735265441981,-500.0,0.00011993,2]
[346757980,1735265441991,-500.93527151,0.00011993,2]
[346757981,1735265442000,-500.2994373,0.00011993,2]
[346757982,1735265442010,-501.17984697,0.00011993,2]
[346757983,1735265442019,-500.0,0.00011993,2]
[346757984,1735265442029,-500.0,0.00011993,2]
[346757985,1735265442039,-500.0,0.00011993,2]
[346757986,1735265442049,-500.0,0.00011993,2]
[346757987,1735265442059,-500.57780541,0.00011993,2]
[346757988,1735265442068,-500.66538533,0.00011993,2]
[346757989,1735265442078,-500.0,0.00011993,2]
[346757990,1735265442087,-500.0,0.00011993,2]
[346757991,1735265442097,-500.27536323,0.00011993,2]
[346757992,1735265442107,-500.81462412,0.00011993,2]
[346757993,1735265442116,-501.29312813,0.00011993,2]
[346757994,1735265442125,-500.2136657,0.00011993,2]
[346757995,1735265442135,-300.59179713,0.00011993,2]
[346757996,1735265442144,-500.55540597,0.00011993,2]
[346757997,1735265442155,-500.0,0.00011993,2]
[346757998,1735265442167,-500.74120071,0.00011993,2]
[346757999,1735265442178,-501.39827616,0.00011993,2]
[346758000,1735265442187,-500.0,0.00011993,2]
[346758001,1735265442197,-500.98772863,0.00011993,2]
[346758002,1735265442207,-500.94876496,0.00011993,2]
[346758003,1735265442360,-500.0,0.00011993,2]
[346758004,1735265442370,-500.0,0.00011993,2]
[346758005,1735265442380,-500.15372641,0.00011993,2]
[346758006,1735265442390,-500.26462108,0.00011993,2]
[346758007,1735265442399,-306.87856536,0.00011993,2]
[346758008,1735265442410,-500.50034438,0.00011993,2]
[346758009,1735265442419,-500.0,0.00011993,2]
[346758010,1735265442428,-500.3632332,0.00011993,2]
[346758011,1735265442438,-179.44815069,0.00011993,2]
[346758012,1735265442448,-500.0,0.00011993,2]
[346758013,1735265442457,-500.0,0.00011993,2]
[346758014,1735265442467,-500.0,0.00011993,2]
[346758015,1735265442481,-500.66897662,0.00011993,2]
[346758016,1735265442490,-500.0,0.00011993,2]
[346758017,1735265442499,-500.51459563,0.00011993,2]
[346758018,1735265442509,-500.0,0.00011993,2]
[346758019,1735265442520,-500.0,0.00011993,2]
[346758020,1735265442529,-242.77688967,0.00011993,2]
[346758021,1735265442538,-500.25666121,0.00011993,2]
[346758022,1735265442549,-500.0,0.00011993,2]
[346758023,1735265442558,-692.29,0.00011993,2]
[346758024,1735265442568,-512.60705243,0.00011993,2]
[346758025,1735265442577,-500.0,0.00011993,2]
[346758026,1735265442586,-500.0,0.00011993,2]
[346758027,1735265442596,-500.26611651,0.00011993,2]
[346758028,1735265442605,-500.0,0.00011993,2]
[346758029,1735265442614,-500.0,0.00011993,2]
[346758030,1735265442624,-503.75890699,0.00011993,2]
[346758031,1735265442633,-508.15373427,0.00011993,2]
[346758032,1735265442643,-501.41620063,0.00011993,2]
[346758033,1735265442653,-500.0,0.00011993,2]
[346758034,1735265442666,-500.58579357,0.00011993,2]
[346758035,1735265442675,-500.0,0.00011993,2]
[346758036,1735265442685,-500.29068427,0.00011993,2]
[346758037,1735265442696,-641.7,0.00011993,2]
[346758038,1735265442705,-500.0,0.00011993,2]
[346758039,1735265442715,-500.0,0.00011993,2]
[346758040,1735265442724,-500.33787942,0.00011993,2]
[346758041,1735265442734,-500.28390207,0.00011993,2]
[346758042,1735265442743,-500.0,0.00011993,2]
[346758043,1735265442753,-251.8769264,0.00011993,2]
[346758044,1735265442763,-500.0,0.00011993,2]
[346758045,1735265442772,-500.11632447,0.00011993,2]
[346758046,1735265442782,-500.0,0.00011993,2]
[346758047,1735265442791,-500.0,0.00011993,2]
[346758048,1735265442801,-500.0,0.00011993,2]
[346758049,1735265442811,-500.0,0.00011993,2]
[346758050,1735265442821,-500.0,0.00011993,2]
[346758051,1735265442831,-500.0,0.00011993,2]
[346758052,1735265442840,-500.0,0.00011993,2]
[346758053,1735265442850,-500.0,0.00011993,2]
[346758054,1735265442859,-500.0,0.00011993,2]
[346758055,1735265442868,-500.0,0.00011993,2]
[346758056,1735265442877,-500.0,0.00011993,2]
[346758057,1735265442887,-1303.21,0.00011993,2]
[346758058,1735265442897,-500.0,0.00011993,2]
[346758060,1735265442906,-500.0,0.00011993,2]
[346758062,1735265442918,-998.99,0.00011993,2]
[346758064,1735265442927,-500.0,0.00011993,2]
[346758065,1735265442937,-500.0,0.00011993,2]
[346758066,1735265442947,-520.93,0.00011993,2]
[346758067,1735265442956,-500.0,0.00011993,2]
[346758068,1735265442966,-500.0,0.00011993,2]
[346758069,1735265442975,-500.0,0.00011993,2]
[346758070,1735265442985,-500.0,0.00011993,2]
[346758071,1735265442994,-500.0,0.00011993,2]
[346758072,1735265443003,-500.0,0.00011993,2]
[346758073,1735265443013,-500.0,0.00011993,2]
[346758074,1735265443022,-844.78,0.00011993,2]
[346758075,1735265443032,-627.9,0.00011993,2]
[346758076,1735265443041,-500.0,0.00011993,2]
[346758077,1735265443050,-500.0,0.00011993,2]
[346758078,1735265443060,-500.0,0.00011993,2]
[346758079,1735265443070,-582.58,0.00011993,2]
[346758080,1735265443080,-500.0,0.00011993,2]
[346758081,1735265443089,-500.0,0.00011993,2]
[346758082,1735265443097,-500.0,0.00011993,2]
[346758083,1735265443106,-573.36,0.00011993,2]
[346758084,1735265443114,-500.0,0.00011993,2]
[346758085,1735265443123,-1045.24,0.00011993,2]
[346758086,1735265443132,-500.0,0.00011993,2]
[346758087,1735265443140,-500.0,0.00011993,2]
[346758088,1735265443149,-667.73,0.00011993,2]
[346758089,1735265443159,-500.0,0.00011993,2]
[346758090,1735265443169,-500.0,0.00011993,2]
[346758091,1735265443179,-500.0,0.00011993,2]
[346758092,1735265443189,-500.0,0.00011993,2]
[346758093,1735265443198,-525.85,0.00011993,2]
[346758094,1735265443207,-768.54,0.00011993,2]
[346758095,1735265443217,-500.0,0.00011993,2]
[346758096,1735265443227,-500.0,0.00011993,2]
[346758097,1735265443236,-517.8,0.00011993,2]
[346758098,1735265443246,-1044.39,0.00011993,2]
[346758099,1735265443256,-536.99,0.00011993,2]
[346758100,1735265443266,-808.24,0.00011993,2]
[346758101,1735265443275,-500.0,0.00011993,2]
[346758102,1735265443285,-502.23,0.00011993,2]
[346758104,1735265443294,-620.1,0.00011993,2]
[346758106,1735265443303,-500.0,0.00011993,2]
[346758107,1735265443312,-500.0,0.00011993,2]
[346758108,1735265443322,-500.0,0.00011993,2]
[346758109,1735265443331,-500.0,0.00011993,2]
[346758110,1735265443340,-513.94147498,0.00011993,2]
[346758111,1735265443350,-500.0,0.00011993,2]
[346758112,1735265443359,-500.0,0.00011993,2]
[346758113,1735265443368,-500.0,0.00011993,2]
[346758114,1735265443378,-500.0,0.00011993,2]
[346758115,1735265443392,-500.0,0.00011993,2]
[346758116,1735265443402,-504.75577417,0.00011993,2]
[346758117,1735265443413,-500.0,0.00011993,2]
[346758118,1735265443423,-500.0,0.00011993,2]
[346758119,1735265443432,-500.0,0.00011993,2]
[346758120,1735265443443,-500.0,0.00011993,2]
[346758121,1735265443452,-500.0,0.00011993,2]
[346758122,1735265443462,-504.77767654,0.00011993,2]
[346758123,1735265443476,-500.0,0.00011993,2]
[346758124,1735265443486,-500.0,0.00011993,2]
[346758125,1735265443496,-500.0,0.00011993,2]
[346758126,1735265443506,-515.97145391,0.00011993,2]
[346758127,1735265443518,-500.0,0.00011993,2]
[346758128,1735265443528,-500.0,0.00011993,2]
[346758129,1735265443537,-763.78,0.00011993,2]
[346758130,1735265443548,-500.0,0.00011993,2]
[346758131,1735265443557,-500.0,0.00011993,2]
[346758132,1735265443567,-500.0,0.00011993,2]
[346758133,1735265443577,-500.0,0.00011993,2]
[346758134,1735265443587,-500.0,0.00011993,2]
[346758135,1735265443596,-646.38,0.00011993,2]
[346758136,1735265443606,-507.57,0.00011993,2]
[346758137,1735265443616,-500.0,0.00011993,2]
[346758138,1735265443626,-500.0,0.00011993,2]
[346758139,1735265443636,-500.0,0.00011993,2]
[346758140,1735265443646,-500.0,0.00011993,2]
[346758141,1735265443656,-500.0,0.00011993,2]
[346758142,1735265443667,-502.81282197,0.00011993,2]
[346758143,1735265443677,-500.0,0.00011993,2]
[346758144,1735265443687,-500.0,0.00011993,2]
[346758145,1735265443697,-505.49171085,0.00011993,2]
[346758146,1735265443707,-500.0,0.00011993,2]
[346758147,1735265443717,-500.0,0.00011993,2]
[346758148,1735265443727,-500.0,0.00011993,2]
[346758149,1735265443738,-1166.78,0.00011993,2]
[346758150,1735265443747,-500.0,0.00011993,2]
[346758151,1735265443757,-500.0,0.00011993,2]
[346758152,1735265443766,-500.0,0.00011993,2]
[346758153,1735265443776,-500.0,0.00011993,2]
[346758154,1735265443786,-500.0,0.00011993,2]
[346758155,1735265443795,-2133.51,0.00011993,2]
[346758156,1735265443805,-500.0,0.00011993,2]
[346758157,1735265443815,-506.49326299,0.00011993,2]
[346758158,1735265443824,-500.0,0.00011993,2]
[346758159,1735265443834,-500.45246801,0.00011993,2]
[346758160,1735265443844,-1680.94,0.00011993,2]
[346758161,1735265443854,-500.0,0.00011993,2]
[346758162,1735265443864,-500.0,0.00011993,2]
[346758163,1735265443874,-500.0,0.00011993,2]
[346758164,1735265443884,-500.0,0.00011993,2]
[346758165,1735265443893,-294.78717879,0.00011993,2]
[346758166,1735265444627,-205.21282121,0.00011993,2]
[346758167,1735265444637,-500.0,0.00011993,2]
[346758168,1735265444647,-500.0,0.00011993,2]
[346758169,1735265444657,-108.52665937,0.00011993,2]
[346758170,1735265444678,-391.47334063,0.00011993,2]
[346758171,1735265444687,-500.0,0.00011993,2]
[346758172,1735265444698,-1396.21,0.00011993,2]
[346758173,1735265444708,-500.0,0.00011993,2]
[346758174,1735265444718,-500.0,0.00011993,2]
[346758175,1735265444728,-500.0,0.00011993,2]
[346758176,1735265444737,-621.38,0.00011993,2]
[346758177,1735265444747,-2267.6,0.00011993,2]
[346758178,1735265444756,-613.09945513,0.00011993,2]
[346758179,1735265444766,-733.7,0.00011993,2]
[346758180,1735265444775,-500.0,0.00011993,2]
[346758181,1735265444791,-500.0,0.00011993,2]
[346758182,1735265444809,-500.0,0.00011993,2]
[346758183,1735265444830,-500.0,0.00011993,2]
[346758184,1735265444851,-500.0,0.00011993,2]
[346758185,1735265444868,-500.0,0.00011993,2]
[346758186,1735265444884,-500.0,0.00011993,2]
[346758187,1735265444903,-500.0,0.00011993,2]
[346758188,1735265444923,-1033.98,0.00011993,2]
[346758189,1735265444942,-508.94257823,0.00011993,2]
[346758190,1735265444960,-500.0,0.00011993,2]
[346758191,1735265444978,-756.47,0.00011993,2]
[346758192,1735265444994,-2303.48,0.00011993,2]
[346758193,1735265445011,-500.0,0.00011993,2]
[346758194,1735265445027,-500.0,0.00011993,2]
[346758195,1735265445041,-1319.23,0.00011993,2]
[346758196,1735265445058,-500.0,0.00011993,2]
[346758197,1735265445073,-500.0,0.00011993,2]
[346758198,1735265445095,-501.03918621,0.00011993,2]
[346758199,1735265445111,-500.0,0.00011993,2]
[346758200,1735265445128,-500.0,0.00011993,2]
[346758201,1735265445144,-500.0,0.00011993,2]
[346758202,1735265445163,-500.0,0.00011993,2]
[346758203,1735265445179,-500.0,0.00011993,2]
[346758204,1735265445196,-500.0,0.00011993,2]
[346758205,1735265445212,-503.13749205,0.00011993,2]
[346758206,1735265445227,-500.0,0.00011993,2]
[346758207,1735265445243,-500.0,0.00011993,2]
[346758208,1735265445259,-1399.59,0.00011993,2]
[346758209,1735265445275,-500.0,0.00011993,2]
[346758210,1735265445292,-500.96191569,0.00011993,2]
[346758211,1735265445308,-500.0,0.00011993,2]
[346758212,1735265445324,-500.0,0.00011993,2]
[346758213,1735265445340,-925.84,0.00011993,2]
[346758214,1735265445356,-283.43542794,0.00011993,2]
[346758215,1735265445377,-229.28520154,0.00011993,2]
[346758216,1735265445391,-500.62789109,0.00011993,2]
[346758217,1735265445407,-500.0,0.00011993,2]
[346758218,1735265445423,-835.04,0.00011993,2]
[346758219,1735265445440,-500.71197499,0.00011993,2]
[346758220,1735265445456,-500.0,0.00011993,2]
[346758221,1735265445473,-501.57668309,0.00011993,2]
[346758222,1735265445490,-383.7582493,0.00011993,2]
[346758223,1735265445509,-116.2417507,0.00011993,2]
[346758224,1735265445524,-300.12652268,0.00011993,2]
[346758225,1735265445539,-352.85485662,0.00011993,2]
[346758226,1735265445557,-147.14514338,0.00011993,2]
[346758227,1735265445573,-500.30404713,0.00011993,2]
[346758228,1735265445587,-500.37474841,0.00011993,2]
[346758229,1735265445602,-1003.23378548,0.00011993,2]
[346758230,1735265445649,-91.13621452,0.00011993,2]
[346758231,1735265445665,-500.5558483,0.00011993,2]
[346758232,1735265445680,-394.89294718,0.00011993,2]
[346758233,1735265446203,-106.06658417,0.00011993,2]
[346758234,1735265446495,-502.27935719,0.00011993,2]
[346758235,1735265446516,-500.0,0.00011993,2]
[346758236,1735265446526,-854.01,0.00011993,2]
[346758237,1735265446536,-1223.57,0.00011993,2]
[346758238,1735265446546,-1223.57,0.00011993,2]
[346758239,1735265446556,-1223.57,0.00011993,2]
[346758240,1735265446567,-1223.57,0.00011993,2]
[346758241,1735265446577,-501.19461195,0.00011993,2]
[346758242,1735265446587,-500.0,0.00011993,2]
[346758243,1735265446597,-500.0,0.00011993,2]
[346758244,1735265446608,-1834.81,0.00011993,2]
[346758245,1735265446618,-740.11,0.00011993,2]
[346758246,1735265446627,-501.11324648,0.00011993,2]
[346758247,1735265446636,-500.75803315,0.00011993,2]
[346758248,1735265446646,-601.1,0.00011993,2]
[346758249,1735265446656,-500.0,0.00011993,2]
[346758250,1735265446666,-1013.35,0.00011993,2]
[346758251,1735265446676,-639.17026803,0.00011993,2]
[346758252,1735265446685,-500.0,0.00011993,2]
[346758253,1735265446695,-500.0,0.00011993,2]
[346758254,1735265446706,-501.1317627,0.00011993,2]
[346758255,1735265446715,-500.77282223,0.00011993,2]
[346758256,1735265446725,-500.0,0.00011993,2]
[346758257,1735265446735,-500.9518087,0.00011993,2]
[346758258,1735265446745,-524.14464922,0.00011993,2]
[346758259,1735265446754,-500.0,0.00011993,2]
[346758260,1735265446763,-502.1356453,0.00011993,2]
[346758261,1735265446773,-1219.9,0.00011993,2]
[346758262,1735265446783,-500.0,0.00011993,2]
[346758263,1735265446793,-500.95973068,0.00011993,2]
[346758264,1735265446803,-501.10237038,0.00011993,2]
[346758265,1735265446813,-500.0,0.00011993,2]
[346758266,1735265446823,-500.0,0.00011993,2]
[346758267,1735265446832,-2005.93,0.00011993,2]
[346758268,1735265446842,-500.0,0.00011993,2]
[346758269,1735265446851,-500.0,0.00011993,2]
[346758270,1735265446861,-500.0,0.00011993,2]
[346758271,1735265446870,-1116.81,0.00011993,2]
[346758273,1735265446879,-504.95185145,0.00011993,2]
[346758275,1735265446889,-500.0,0.00011993,2]
[346758277,1735265446898,-507.1880053,0.00011993,2]
[346758279,1735265446908,-596.42,0.00011993,2]
[346758281,1735265446925,-500.43416713,0.00011993,2]
[346758283,1735265446934,-1481.61,0.00011993,2]
[346758285,1735265446946,-500.0,0.00011993,2]
[346758287,1735265446957,-500.0,0.00011993,2]
[346758289,1735265446968,-548.59820592,0.00011993,2]
[346758291,1735265446979,-500.0,0.00011993,2]
[346758293,1735265446990,-1107.68,0.00011993,2]
[346758295,1735265447001,-1269.84,0.00011993,2]
[346758297,1735265447012,-1015.36,0.00011993,2]
[346758299,1735265447023,-500.70948744,0.00011993,2]
[346758301,1735265447034,-500.0,0.00011993,2]
[346758302,1735265447045,-500.0,0.00011993,2]
[346758303,1735265447057,-500.0,0.00011993,2]
[346758306,1735265447068,-500.0,0.00011993,2]
[346758308,1735265447078,-1931.05,0.00011993,2]
[346758310,1735265447089,-500.0,0.00011993,2]
[346758311,1735265447101,-539.15,0.00011993,2]
[346758312,1735265447111,-500.96991606,0.00011993,2]
[346758313,1735265447121,-501.20168648,0.00011993,2]
[346758315,1735265447132,-500.0,0.00011993,2]
[346758317,1735265447143,-500.0,0.00011993,2]
[346758318,1735265447154,-500.48155404,0.00011993,2]
[346758319,1735265447171,-765.67,0.00011993,2]
[346758320,1735265447182,-500.0,0.00011993,2]
[346758321,1735265447192,-1979.62,0.00011993,2]
[346758322,1735265447202,-500.0,0.00011993,2]
[346758323,1735265447213,-500.0,0.00011993,2]
[346758324,1735265447223,-501.20106096,0.00011993,2]
[346758325,1735265447233,-749.5,0.00011993,2]
[346758326,1735265447244,-500.0,0.00011993,2]
[346758327,1735265447255,-500.0,0.00011993,2]
[346758328,1735265447265,-500.0,0.00011993,2]
[346758329,1735265447275,-500.0,0.00011993,2]
[346758330,1735265447285,-500.0,0.00011993,2]
[346758331,1735265447295,-500.0,0.00011993,2]
[346758332,1735265447305,-1101.72,0.00011993,2]
[346758333,1735265447314,-500.0,0.00011993,2]
[346758334,1735265447324,-756.82,0.00011993,2]
[346758335,1735265447333,-1874.67,0.00011993,2]
[346758336,1735265447343,-500.0,0.00011993,2]
[346758337,1735265447353,-500.0,0.00011993,2]
[346758338,1735265447363,-417.58613693,0.00011993,2]
[346758339,1735265447372,-500.0,0.00011993,2]
[346758340,1735265447382,-1258.53,0.00011993,2]
[346758341,1735265447392,-500.0,0.00011993,2]
[346758342,1735265447402,-500.0,0.00011993,2]
[346758343,1735265447415,-500.0,0.00011993,2]
[346758344,1735265447425,-503.41759067,0.00011993,2]
[346758345,1735265447434,-500.0,0.00011993,2]
[346758346,1735265447443,-500.0,0.00011993,2]
[346758347,1735265447452,-2340.01,0.00011993,2]
[346758348,1735265447462,-705.78,0.00011993,2]
[346758349,1735265447473,-500.0,0.00011993,2]
[346758350,1735265447484,-500.0,0.00011993,2]
[346758351,1735265447494,-500.70669064,0.00011993,2]
[346758352,1735265447503,-815.67,0.00011993,2]
[346758353,1735265447513,-1165.12,0.00011993,2]
[346758354,1735265447523,-500.0,0.00011993,2]
[346758355,1735265447533,-3407.17,0.00011993,2]
[346758356,1735265447543,-500.0,0.00011993,2]
[346758357,1735265447553,-559.77,0.00011993,2]
[346758358,1735265447563,-500.0,0.00011993,2]